Cogmind - Beta 11.1 *** ADVENTURER MODE // 2022.05.13 @ 17:34:09 Player: Fgdfgfthgr Result: Destroyed by 99-TNT with 99-TNT's Nukerbomber Performance ------------- Evolutions (1) 500 Regions Visited (6) 1200 Robots Destroyed (62) 310 Value Destroyed (1192) 1192 Prototype IDs (37) 740 Alien Tech Used (0) 0 Bonus (-353) -353 TOTAL SCORE: 3589 Bonus ------- High Alert Combat Kills 2 Follower Combat Kills 287 Aligned with FarCom 300 Friendly Fire -942 Cogmind --------- Core Integrity 0/400 Matter 253/300 Energy 310/310 System Corruption 0% Temperature Cool (0) Movement Treading (560) Ox5 Location -8/Mines Parts ------- > --- POWER (1) -------- Reinforced Fission Core > --- PROPULSION (3) --- Light Treads > --- UTILITY (3) ------ Cooling System Huge Storage Unit Improved Utility Shielding > --- WEAPON (2) ------- Beamcaster Improved Assault Rifle > --- INVENTORY (25) --- Improved Ion Engine Light Nuclear Core Makeshift Power Source Light Angular Momentum Engine Light Treads Light Treads Makeshift Leg Advanced Myomer Leg Advanced Myomer Leg Improved Heat Sink Experimental Heat Sink Large Storage Unit Gravity Neutralizer Trap Scanner Experimental Targeting Computer Advanced Weapon Cycler Improved Trap Extractor (0/6) AS-neutralizer No. 17b Improved Assault Rifle Improved Assault Rifle Makeshift Shrapnel Gun 8R-AWN's Boregun 8R-AWN's Boregun Rocket Launcher Peak State ------------ > --- POWER ------------ Reinforced Fission Core > --- PROPULSION ------- Light Treads Light Treads Light Treads > --- UTILITY ---------- Cooling System Huge Storage Unit Improved Utility Shielding > --- WEAPON ----------- Improved Assault Rifle 8R-AWN's Boregun > --- INVENTORY -------- Light Nuclear Core Makeshift Power Source Light Angular Momentum Engine Light Treads Light Treads Makeshift Leg Advanced Myomer Leg Advanced Myomer Leg Improved Heat Sink Experimental Heat Sink Large Storage Unit Gravity Neutralizer Trap Scanner Experimental Targeting Computer Advanced Weapon Cycler Improved Trap Extractor Improved Medium Laser Beamcaster Improved Assault Rifle Improved Assault Rifle Improved Assault Rifle Makeshift Shrapnel Gun 8R-AWN's Boregun Rocket Launcher Rocket Launcher [Rating: 38] Favorites ----------- Power Improved Ion Engine Engine Improved Ion Engine Power Core Reinforced Fission Core Propulsion Light Treads Treads Light Treads Leg Aluminum Leg Flight Unit Improved Flight Unit Utility Light Armor Plating Device Cooling System Storage Huge Storage Unit Protection Light Armor Plating Weapon Improved Medium Laser Energy Gun Improved Medium Laser Energy Cannon Ion Cannon Ballistic Gun Improved Assault Rifle Ballistic Cannon Light Cannon Launcher Rocket Launcher Special Weapon Plasma Cutter Build | -11 -10 -10 -9 -9 -9 -8 ------- Run | Scr Mat Min Mat Min Exi Min Slots Evolved 2 | . . . 2 . . . Power . | . . . . . . . Propulsion 1 | . . . 1 . . . Utility 1 | . . . 1 . . . Weapon . | . . . . . . . Parts Attached 61 | . 11 1 30 2 16 1 Power 5 | . 1 . 3 . 1 . Engine 4 | . 1 . 3 . . . Core 1 | . . . . . 1 . Reactor . | . . . . . . . Propulsion 17 | . 3 . 11 . 3 . Treads 15 | . 2 . 10 . 3 . Leg 1 | . 1 . . . . . Wheel . | . . . . . . . Hover . | . . . . . . . Flight 1 | . . . 1 . . . Utility 18 | . 3 . 11 . 4 . Device 6 | . 2 . 3 . 1 . Storage 4 | . 1 . 3 . . . Processor . | . . . . . . . Hackware . | . . . . . . . Protection 8 | . . . 5 . 3 . Artifact . | . . . . . . . Weapon 21 | . 4 1 5 2 8 1 Energy Gun 5 | . . . 3 1 . 1 Energy Cannon 1 | . . 1 . . . . Ballistic Gun 8 | . 2 . 1 . 5 . Ballistic Cannon 2 | . 2 . . . . . Launcher 4 | . . . 1 1 2 . Special Weapon 1 | . . . . . 1 . Impact Weapon . | . . . . . . . Slashing Weapon . | . . . . . . . Piercing Weapon . | . . . . . . . Special Melee Weapon . | . . . . . . . Unidentified Prototypes 2 | . . . 1 . 1 . Parts Lost 9 | . . . . . 6 3 Power . | . . . . . . . Propulsion 5 | . . . . . 3 2 Utility 2 | . . . . . 2 . Weapon 2 | . . . . . 1 1 Highest Loss Streak 3 | . . . . . 3 3 To Critical Strikes 4 | . . . . . 4 . Average Slot Usage (%) 99 | . 98 100 99 100 99 100 Engine 11 | . 14 14 11 11 9 . Treads 30 | . 15 28 32 33 33 33 Leg 1 | . 12 . . . . . Device 11 | . 13 14 11 11 11 11 Storage 11 | . 14 14 11 11 11 11 Protection 8 | . . . 10 11 10 11 Energy Gun 10 | . 15 8 10 10 8 . Energy Cannon 1 | . . 5 3 . . . Ballistic Gun 6 | . 3 . 3 11 12 22 Ballistic Cannon 4 | . 9 14 4 . . . Naked Turns . | . . . . . . . Heaviest Build 111 | 13 31 35 100 98 111 111 Greatest Support 60 | 20 40 40 60 60 60 60 Greatest Overweight (x) 1 | . . . 1 1 1 1 Average Overweight (x) . | . . . . 1 1 1 Largest Inventory Capacity 25 | . 15 15 25 25 25 25 Average Capacity 22 | . 11 15 23 25 25 25 Most Carried 25 | . 13 15 25 25 25 25 Average Carried 21 | . 9 14 23 24 23 24 Final Capacity 25 | 8 15 15 25 25 25 25 Final Carried 25 | 6 13 15 25 25 25 24 Class Distribution -------------------- 73% | Scavenger-Mutant 26% | Mutant Dominant Class ---------------- Mutant | -10/Materials Mutant | -10/Mines Scavenger-Mutant | -9/Materials Scavenger-Mutant | -9/Mines Scavenger-Mutant | -9/Exiles Mutant | -8/Mines Resources | -11 -10 -10 -9 -9 -9 -8 ----------- Run | Scr Mat Min Mat Min Exi Min Matter Collected 1387 | 199 206 28 477 88 389 . Remotely . | . . . . . . . Salvage Created 2025 | . 462 9 1370 49 135 . Parts 124 | . 38 2 72 3 9 . Haulers Intercepted 7 | . 1 . 6 . . . Recyclers Shooed . | . . . . . . . Parts Field Recycled . | . . . . . . . Retrieved Matter . | . . . . . . . Parts Self-Destructed . | . . . . . . . Prevented . | . . . . . . . Kills | -11 -10 -10 -9 -9 -9 -8 ------- Run | Scr Mat Min Mat Min Exi Min Combat Hostiles Destroyed 43 | . 9 1 23 8 2 . Guns 29 | . 8 1 13 5 2 . Cannons 11 | . 1 . 10 . . . AOE 3 | . . . . 3 . . Classes Destroyed 9 | . 6 . 2 1 . . Worker 8 | . 3 . 5 . . . Builder 1 | . 1 . . . . . Tunneler 1 | . . . 1 . . . Hauler 7 | . 1 . 6 . . . Watcher 8 | . 3 . 5 . . . Swarmer 14 | . 3 1 7 3 . . Grunt 16 | . 6 . 10 . . . Sentry 6 | . . . 6 . . . Assembled 12 | . . . . 5 7 . Best Kill Streak 4 | . 4 1 4 4 1 . Combat Bots Only 4 | . 3 1 4 4 1 . Max Kills in Single Turn 6 | . 1 1 2 2 6 . Gunslinging 1 | . . . 1 1 . . Exploded 2 | . . . . 2 . . Melee . | . . . . . . . Uniques/NPCs Destroyed 1 | . . . . . 1 . 8R-AWN (-9/Exiles) Combat | -11 -10 -10 -9 -9 -9 -8 -------- Run | Scr Mat Min Mat Min Exi Min Damage Taken 2695 | . 177 31 576 125 982 804 Core 477 | . 27 6 62 . 146 236 Absorbed by Shields . | . . . . . . . Regen/Repaired (Parts) 29 | . . . 29 . . . Core Remaining (%) 93 | 100 . 86 . . . . Volleys Fired 177 | . 37 3 73 12 50 2 Largest 2 | . 2 2 2 2 2 2 Hottest 131 | . 90 85 131 79 66 98 Shots Fired 348 | . 74 6 144 20 100 4 Gun 265 | . 63 3 88 16 91 4 Cannon 69 | . 11 3 55 . . . Launcher 7 | . . . 1 4 2 . Special 7 | . . . . . 7 . Kinetic 177 | . 30 3 43 8 91 2 Thermal 164 | . 44 3 100 8 7 2 Explosive 7 | . . . 1 4 2 . Electromagnetic . | . . . . . . . Robot Hit Streak 41 | . 12 2 39 9 41 17 Robot Miss Streak 3 | . 3 2 2 2 2 . Penetration Max . | . . . . . . . Secondary Targets 4 | . . . 3 1 . . Max Gunslinging Chain 1 | . . . 1 1 . . Shots Hit Robots 270 | . 52 3 107 12 92 4 Core Hits 115 | . 26 1 46 12 28 2 Critical Kills . | . . . . . . . Critical Parts Destroyed 1 | . 1 . . . . . Critical Strikes 11 | . 3 . 5 1 2 . Burn 6 | . 1 . 4 1 . . Destroy 2 | . 1 . . . 1 . Blast 2 | . 1 . 1 . . . Sever 1 | . . . . . 1 . Melee Attacks . | . . . . . . . Impact . | . . . . . . . Slashing . | . . . . . . . Piercing . | . . . . . . . Sneak Attacks . | . . . . . . . Combat Hostiles . | . . . . . . . Follow-up Attacks . | . . . . . . . Damage Inflicted 5006 | . 703 43 2163 380 1656 61 Guns 3424 | . 547 26 1348 194 1248 61 Cannons 960 | . 156 17 787 . . . Explosions 528 | . . . . 186 342 . Melee . | . . . . . . . Ramming 28 | . . . 28 . . . Kinetic 2166 | . 314 17 481 87 1248 19 Thermal 2284 | . 389 26 1654 107 66 42 Explosive 528 | . . . . 186 342 . Electromagnetic . | . . . . . . . Impact . | . . . . . . . Slashing . | . . . . . . . Piercing . | . . . . . . . Highest Corruption . | . . . . . . . Average Corruption . | . . . . . . . Corruption Purged . | . . . . . . . Corruption Blocked . | . . . . . . . Overload Shots . | . . . . . . . Overflow Damage 4 | . . . 4 . . . Projectiles 4 | . . . 4 . . . Explosions . | . . . . . . . Melee . | . . . . . . . Knockbacks 2 | . 1 . 1 . . . Impact . | . . . . . . . Kinetic 2 | . 1 . 1 . . . Secondary . | . . . . . . . Self-Inflicted Damage 10 | . . . . 10 . . Shots 1 | . . . . 1 . . Rammed 2 | . . . 2 . . . Targets Rammed 2 | . . . 2 . . . Kicked . | . . . . . . . Crushed . | . . . . . . . Highest Temperature 222 | . 222 . 180 . . . Average Temperature 56 | . 99 . 47 . . . Received Heat Transfer 395 | . 105 . 264 6 20 . Siege Activations . | . . . . . . . Robots Corrupted . | . . . . . . . Combat Hostiles . | . . . . . . . Parts Fried . | . . . . . . . Impact Corruptions . | . . . . . . . Robots Melted . | . . . . . . . Combat Hostiles . | . . . . . . . Parts Melted 10 | . 3 . 7 . . . Heat Transferred 4859 | . 1161 74 3256 296 54 18 Parts Sabotaged . | . . . . . . . Parts Stolen . | . . . . . . . Parts Stripped . | . . . . . . . Power Chain Reactions . | . . . . . . . Missiles Intercepted . | . . . . . . . Alert | -11 -10 -10 -9 -9 -9 -8 ------- Run | Scr Mat Min Mat Min Exi Min Peak Influence 409 | . 172 75 409 151 . . Initial 21 | . . 21 . . . . Average 78 | . 96 54 118 22 . . Maximum Alert Level 2 | . . . 2 . . . Low Security (%) 86 | . 100 100 69 100 . 100 Level 1 12 | . . . 29 . . . Level 2 . | . . . 1 . . . Level 3 . | . . . . . . . Level 4 . | . . . . . . . Level 5 . | . . . . . . . High Security . | . . . . . . . Max Security . | . . . . . . . Squads Dispatched 6 | . 3 . 2 1 . . Investigation 6 | . 3 . 2 1 . . Extermination . | . . . . . . . Reinforcement . | . . . . . . . Assault . | . . . . . . . Garrison . | . . . . . . . Intercept . | . . . . . . . Searches Triggered . | . . . . . . . Construction Impeded . | . . . . . . . Haulers Reinforced . | . . . . . . . Active Scanning Responses . | . . . . . . . Cargo Convoy Interrupts . | . . . . . . . Stealth | -11 -10 -10 -9 -9 -9 -8 --------- Run | Scr Mat Min Mat Min Exi Min Distress Signals 4 | . 1 . 1 2 . . Communications Jammed . | . . . . . . . Distress Signals . | . . . . . . . Times Spotted 70 | . 15 5 36 11 2 1 Peak Tracking Total 4 | . 4 3 4 4 3 1 Tactical Retreats 4 | . 1 . 1 2 . . Traps | -11 -10 -10 -9 -9 -9 -8 ------- Run | Scr Mat Min Mat Min Exi Min Traps Triggered 1 | . 1 . . . . . Indirectly . | . . . . . . . Trap Hack Attempts . | . . . . . . . Triggered . | . . . . . . . Disarmed . | . . . . . . . Reprogrammed 5 | . . . 5 . . . Reused . | . . . . . . . Traps Extracted 1 | . . . 1 . . . Installed 1 | . . . . . 1 . Triggered . | . . . . . . . Most Traps Carried 1 | . . . 1 1 1 . Machines | -11 -10 -10 -9 -9 -9 -8 ---------- Run | Scr Mat Min Mat Min Exi Min Machines Disabled 4 | . . . 1 . 3 . Max in Single Turn 2 | . . . 1 . 2 . Machines Sabotaged . | . . . . . . . Garrisons Compromised . | . . . . . . . Overloaded Fab Kills . | . . . . . . . Hacking | -11 -10 -10 -9 -9 -9 -8 --------- Run | Scr Mat Min Mat Min Exi Min Machines Accessed 30 | . 10 1 16 1 2 . Terminals 20 | . 8 . 11 1 . . Fabricators . | . . . . . . . Repair Stations 1 | . . . 1 . . . Recycling Units 4 | . 2 . 2 . . . Scanalyzers 2 | . . . 2 . . . Garrison Access . | . . . . . . . Total Hacks 79 | . 24 1 50 2 2 . Successful 49 | . 12 1 32 2 2 . Failed 28 | . 11 . 17 . . . Catastrophic . | . . . . . . . Database Lockouts 2 | . 1 . 1 . . . Manual 43 | . 14 . 27 1 1 . Terminals 65 | . 22 . 41 2 . . Fabricators . | . . . . . . . Repair Stations 2 | . . . 2 . . . Recycling Units 5 | . 2 . 3 . . . Scanalyzers 4 | . . . 4 . . . Garrison Access . | . . . . . . . Terminal Hacks 33 | . 8 1 21 1 2 . Record 1 | . . . . . 1 . Robot Analysis 6 | . 2 . 4 . . . Prototype ID Bank 10 | . 2 . 8 . . . Open Door 1 | . . 1 . . . . Machine Index 1 | . 1 . . . . . Terminal Index 1 | . . . 1 . . . Scanalyzer Index 1 | . . . 1 . . . Locate Traps 5 | . 2 . 3 . . . Reprogram Traps 2 | . . . 2 . . . Dispatch Records 1 | . . . . 1 . . Registered Components 1 | . . . 1 . . . Zone Layout 2 | . 1 . 1 . . . EX-Prototype ID Bank 1 | . . . . . 1 . Fabricator Hacks . | . . . . . . . Repair Station Hacks 2 | . . . 2 . . . Scan Component 1 | . . . 1 . . . Repair 1 | . . . 1 . . . Recycling Unit Hacks . | . . . . . . . Scanalyzer 4 | . . . 4 . . . Insert Component 2 | . . . 2 . . . Analyze 2 | . . . 2 . . . Garrison Access Hacks . | . . . . . . . Unauthorized Hacks 10 | . 4 . 5 1 . . Terminals 6 | . 2 . 3 1 . . Botnet 5 | . 2 . 3 . . . Search 1 | . . . . 1 . . Fabricators . | . . . . . . . Repair Stations . | . . . . . . . Recycling Units 4 | . 2 . 2 . . . Tunnel 4 | . 2 . 2 . . . Scanalyzers . | . . . . . . . Garrison Access . | . . . . . . . Data Cores Recovered . | . . . . . . . Used . | . . . . . . . Hacking Detections 23 | . 8 . 14 1 . . Full Trace Events . | . . . . . . . Feedback Events . | . . . . . . . Feedback Blocked . | . . . . . . . Robot Schematics Acquired . | . . . . . . . Robots Built . | . . . . . . . Authchips . | . . . . . . . Time . | . . . . . . . Total Robot Build Rating . | . . . . . . . Part Schematics Acquired 2 | . . . 2 . . . Parts Built . | . . . . . . . Authchips . | . . . . . . . Time . | . . . . . . . Total Part Build Rating . | . . . . . . . Parts Repaired 1 | . . . 1 . . . Time 44 | . . . 44 . . . Parts Recycled . | . . . . . . . Recycled Matter . | . . . . . . . Retrieved Matter . | . . . . . . . Retrieved Components . | . . . . . . . Parts Scanalyzed 2 | . . . 2 . . . Part Schematics Acquired 2 | . . . 2 . . . Parts Damaged . | . . . . . . . Bothacking | -11 -10 -10 -9 -9 -9 -8 ------------ Run | Scr Mat Min Mat Min Exi Min Used RIF Installer . | . . . . . . . Robots Hacked . | . . . . . . . Non-combat . | . . . . . . . Combat . | . . . . . . . Robot Hacks Applied . | . . . . . . . Relay Couplers Released . | . . . . . . . Fabnet Peak Effective % . | . . . . . . . Robots Rewired . | . . . . . . . Allies Hacked . | . . . . . . . Hacks Repelled . | . . . . . . . Allies | -11 -10 -10 -9 -9 -9 -8 -------- Run | Scr Mat Min Mat Min Exi Min Total Allies 5 | . . 3 . 2 . . Largest Group 3 | . . 3 2 2 1 . Highest-Rated Group 48 | . . 40 32 48 31 . Highest-Rated Ally 31 | . . 16 16 31 31 . Total Orders . | . . . . . . . Ally Attacks 52 | . . 10 20 22 . . Total Damage 684 | . . 131 242 311 . . Kills 17 | . . 5 5 7 . . Allies Corrupted . | . . . . . . . Allies Melted . | . . . . . . . Intel | -11 -10 -10 -9 -9 -9 -8 ------- Run | Scr Mat Min Mat Min Exi Min Robot Analysis Total 6 | . 2 . 4 . . . Derelict Logs Recovered 1 | . . . . 1 . . Drone Launches . | . . . . . . . Drone Recoveries . | . . . . . . . Exploration | -11 -10 -10 -9 -9 -9 -8 ------------- Run | Scr Mat Min Mat Min Exi Min Turns Passed 8825 | . 1012 967 3260 2139 1407 40 Spaces Moved 3728 | 1 597 521 1336 756 503 14 Core . | . . . . . . . Treads 3435 | . 305 521 1336 756 503 14 Legs 293 | 1 292 . . . . . Wheels . | . . . . . . . Hover . | . . . . . . . Flight . | . . . . . . . Fastest Speed 120 | 120 120 160 160 240 240 240 Average Speed 206 | 120 140 160 221 240 240 240 Slowest Speed 240 | 120 160 160 240 240 240 240 Overloaded Moves . | . . . . . . . Propulsion Burnouts . | . . . . . . . Robots Hopped . | . . . . . . . Cave-ins Triggered . | . . . . . . . Exploration Rate (%) 66 | 2 93 98 97 99 67 11 Regions Visited 6 Branch Regions 4 Pre-discovered Areas 7 | . 2 1 2 1 1 . Known Exits Taken . | . . . . . . . Unknown Exits Taken 6 | 1 1 1 1 1 1 . Scrap Searched 3 | . . 2 . 1 . . Spaces Dug 9 | . . . 9 . . . Terrain Destroyed 60 | . . . 11 33 16 . Melee . | . . . . . . . Projectile 2 | . . . 2 . . . AOE 58 | . . . 9 33 16 . Terrain Rammed . | . . . . . . . Walls Destroyed . | . . . . . . . Machines Disabled . | . . . . . . . Actions | -11 -10 -10 -9 -9 -9 -8 --------- Run | Scr Mat Min Mat Min Exi Min Total 4537 | . 698 649 1512 1063 598 17 Wait 453 | . 37 122 7 286 1 . Move 3722 | . 596 520 1335 755 502 14 Hop . | . . . . . . . Pick Up 57 | . 8 2 27 4 16 . Fast Attach 10 | . 3 1 4 . 2 . Attach 10 | . 2 . 1 . 6 1 Detach 4 | . 2 . 2 . . . Swap 41 | . 6 . 25 2 8 . Drop 60 | . 7 1 36 4 12 . Fire 177 | . 37 3 73 12 50 2 Melee . | . . . . . . . Ram . | . . . . . . . Kick . | . . . . . . . Crush 2 | . . . 2 . . . Escape Stasis . | . . . . . . . Rewire . | . . . . . . . Trap 1 | . . . . . 1 . Miscellaneous . | . . . . . . . Route ------- -11/Scrapyard -10/Materials (discovered 4 exits: *Mat x3 / *Min) -10/Mines (discovered 2 exits: *Mat x2) -9/Materials (discovered 5 exits: [*Mat x3] / *Min x2) -9/Mines (discovered 3 exits: [*Mat x2] / *Exi) -9/Exiles -8/Mines History --------- Turn | Location | Event 1 | -11/Scrapyard | Discovered new exit (range 0) 1 | -11/Scrapyard | Entered Materials 242 | -10/Materials | Discovered new exit (range 10) 312 | -10/Materials | Build established: Mutant 436 | -10/Materials | Discovered new exit (range 6) 807 | -10/Materials | Discovered new exit (range 8) 850 | -10/Materials | Central database locked down 984 | -10/Materials | Discovered new exit (range 11) 1013 | -10/Materials | Entered Mines 1061 | -10/Mines | Assisted by bots powering up and referring to "LRC-V3" 1294 | -10/Mines | Learned location of Storage (-8) 1456 | -10/Mines | Discovered new exit (range 8) 1478 | -10/Mines | Met a Derelict who couldn't figure out how to use a Trap Extractor 1627 | -10/Mines | Discovered new exit (range 12) 1980 | -10/Mines | Entered Materials 1980 | -9/Materials | Accompanied by 2 allies 1980 | -9/Materials | Evolved 2 slots: Propulsion x1, Utility x1 2236 | -9/Materials | Discovered new exit (range 15) 2393 | -9/Materials | Build established: Scavenger-Mutant 2448 | -9/Materials | Discovered new exit (range 11) 2591 | -9/Materials | Repaired Imp. Trap Extractor? 3211 | -9/Materials | Discovered new exit (range 4) 3923 | -9/Materials | Discovered new exit (range 6) 4387 | -9/Materials | Central database locked down 4643 | -9/Materials | Discovered new exit (range 15) 5240 | -9/Materials | Entered Mines 5556 | -9/Mines | Assembled infested the area 6162 | -9/Mines | Discovered new exit (range 6) 6589 | -9/Mines | Discovered new exit (range 11) 6786 | -9/Mines | Deemed a non-threat by the Exiles lab entrance 7364 | -9/Mines | Discovered new exit (range 5) 7379 | -9/Mines | Entered Exiles 7379 | -9/Exiles | Accompanied by 1 ally 7409 | -9/Exiles | Led the pair of lost Derelicts to a safe place 7554 | -9/Exiles | Met 8R-AWN 7614 | -9/Exiles | Discovered new exit (range 14) 7689 | -9/Exiles | Met EX-HEX 7802 | -9/Exiles | Met EX-DEC 7843 | -9/Exiles | Learned location of Zion (-7) 8185 | -9/Exiles | Met EX-BIN 8209 | -9/Exiles | Aligned with FarCom system 8211 | -9/Exiles | Given EX-Vault access code 8267 | -9/Exiles | Opened EX-Vault 8322 | -9/Exiles | Warned to stay clear of 0b10 Research branches 8472 | -9/Exiles | Attacked by the Exiles 8578 | -9/Exiles | Lost 3 parts (2n1u) 8630 | -9/Exiles | Core integrity fell below 50% 8635 | -9/Exiles | Destroyed 8R-AWN 8656 | -9/Exiles | Lost 3 parts (1n1u1w) 8664 | -9/Exiles | Found Prototype Processor 8675 | -9/Exiles | Found Prototype Ballistic Gun 8682 | -9/Exiles | Found Prototype Ballistic Gun 8682 | -9/Exiles | Identified 8R-AWN's Boregun (x2) 8688 | -9/Exiles | Found Prototype Device 8786 | -9/Exiles | Entered Mines 8819 | -8/Mines | 99-TNT came to Exiles' defense 8821 | -8/Mines | Core integrity fell below 20% 8826 | -8/Mines | Destroyed by 99-TNT with 99-TNT's Nukerbomber Last Messages --------------- 08682_ Identified 8R-AWN's Boregun. 08687_ Dropped Imp. Medium Laser. 08688_ Acquired Prototype Device. 08689_ Dropped Rocket Launcher. 08728_ Acquired 69 matter. 08766_ Acquired Imp. Ion Engine. A strange signal echoes through the mines. LOCATION=UNKNOWN GOAL=ESCAPE 08787_ K-01 Serf collects debris. 08789_ K-01 Serf cleans the Core Extractor. 08791_ K-01 Serf collects debris. 08792_ K-01 Serf cleans the Core Extractor. 08795_ K-01 Serf collects debris. 08819_ 99-TNT: "I came as fast as I could... Wait, it was you!" 08819_ The unstable cave ceiling collapses. 08820_ Imp. Assault Rifle destroyed. 08822_ Lgt. Treads destroyed. 08824_ The unstable cave ceiling collapses. 08826_ Lgt. Treads destroyed. Map ----- +----------------------------------------------------+ | ?????????????????????????????????????????????????? | | ?????????????????????????????????????????????????? | | ?????????????????????????????????????????????????? | | ?????????????????????????????????????????????????? | | ?????????????????????????????????????????????????? | | ?????????????????????????????????????????????????? | | ?????????????????????????????????????????????????? | | ?????????????????????????????????????????????????? | | ?????????????????????????????????????????????????? | | ???????????????????????????????????????##????????? | | ??????????????????????? ??????????????? #????????? | | ????????????????????? #?????????????? #????????? | | ??????????????????? #????????????? #????????? | | ??????????????????? ????????????? ????????? | | ???????????????????? #???????????? #????????? | | ???????????????????? ????????#### #####????? | | ????????????????????? ????????# #????? | | ????????????????????? ????????# #????? | | ????????????#????????? ????????# #????? | | ????????????? ??????? ?????#### #????? | | ??????????????? ###### ###?? # """ #????? | | ????????????????? ## """ #????? | | ??????????????????? """ #????? | | ????????????????????# k #????? | | ????????????????????# """ #????? | | ????????????????????# d @ """ #????? | | ????????????????????# """ #????? | | ????????????????????# #????? | | ????????????????????## ###########????? | | ?????????????????????## # ## ##??????????????? | | ??????????????????????#########??????????????????? | | | | | | | | | | | | | | | | | | | | | | | | | | | | | | | | | | | | | | | +----------------------------------------------------+ Best States ------------- Heat Dissipation 50 Energy Generation 19 Energy Capacity 310 Matter Stores 300 Matter Capacity 300 Sight Range 16 Terrain Scan Density 10 Armor Coverage 225 Resistance: KI 20 Resistance: TH 20 Resistance: EX 20 Resistance: EM 20 Resistance: I 20 Resistance: S 20 Resistance: P 20 Utility Shielding 66 Evasion (%) 55 Recoil Reduction 3 Offensive Hacking 10 Trap Extractor Capacity 6 Item Schematics ----------------- Med. Armor Plating | -9/Materials | Scanalyzed Beamcaster | -9/Materials | Scanalyzed Robot Schematics ------------------ None Fabricated ------------ Nothing Alien Tech Used ----------------- None Achievements -------------- None Challenges ------------ None Game ------ Seed IntegratedDataGravjet Manual? 0 Play Time 00:32:57 Cumulative 188.1 hours Start 2022.05.13 @ 13:55:15 End 2022.05.13 @ 17:34:09 Sessions 3 Manual Loads 0 Difficulty Adventurer Special Mode None Game No. 86 Rogue 0 Adventurer 86 Explorer 0 Win Type - Total 14 Types 8/1/1/1/1/0/0/1/1 Lore% 88 Gallery% 84 Achievement% 75 Wizard Run 0 Options --------- ASCII 0 Keyboard 1 Movement Numpad Keybinds 0 Fullscreen 2 Font 18/SmallcapsGlow Map View 76x50 Tactical HUD 1 Map Filters NONE Filters NONE Steam 1 RUN: 0600b3bf-9243-4d83-8792-9a92a9970a25